fUST/lending_fUST_20240212
["ID","MTS","AMOUNT","RATE_DAILY","PERIOD"]
[313752583,1707671440660,-500.0,0.00020273,2]
[313752584,1707671440672,-512.85,0.00020273,2]
[313752585,1707671440681,-4576.94,0.00020273,2]
[313752586,1707671440690,-969.61,0.00020273,2]
[313752587,1707671440699,-500.0,0.00020273,2]
[313752588,1707671440709,-500.0,0.00020273,2]
[313752589,1707671440718,-4035.21,0.00020273,2]
[313752590,1707671440727,-970.4,0.00020273,2]
[313752591,1707671440738,-2532.92,0.00020273,2]
[313752592,1707671440748,-3358.08,0.00020273,2]
[313752593,1707671440759,-4412.31,0.00020273,2]
[313752594,1707671440768,-1041.18,0.00020273,2]
[313752595,1707671440777,-810.81,0.00020273,2]
[313752596,1707671440789,-3558.2,0.00020273,2]
[313752597,1707671440797,-8033.48,0.00020273,2]
[313752598,1707671440807,-500.0,0.00020273,2]
[313752599,1707671440816,-696.26,0.00020273,2]
[313752600,1707671440825,-500.0,0.00020273,2]
[313752601,1707671440835,-507.96,0.00020273,2]
[313752602,1707671440844,-500.0,0.00020273,2]
[313752603,1707671440854,-4020.23,0.00020273,2]
[313752604,1707671440865,-839.95,0.00020273,2]
[313752605,1707671440875,-500.0,0.00020273,2]
[313752606,1707671440884,-500.0,0.00020273,2]
[313752607,1707671440894,-741.31,0.00020273,2]
[313752608,1707671440904,-933.64,0.00020273,2]
[313752609,1707671440914,-721.09,0.00020273,2]
[313752610,1707671440924,-151.0,0.00020411,2]
[313752611,1707671440934,-44444.0,0.00020447,2]
[313752612,1707671440943,-935.52,0.00020472,2]
[313752613,1707671440953,-935.52,0.00020472,2]
[313752614,1707671440962,-935.52,0.00020472,2]
[313752615,1707671440971,-935.52,0.00020472,2]
[313752616,1707671440983,-935.52,0.00020472,2]
[313752617,1707671440992,-935.52,0.00020472,2]
[313752618,1707671441003,-935.52,0.00020472,2]
[313752619,1707671441013,-935.52,0.00020472,2]
[313752620,1707671441022,-935.52,0.00020472,2]
[313752621,1707671441032,-935.52,0.00020472,2]
[313752622,1707671441042,-935.52,0.00020472,2]
[313752623,1707671441051,-935.52,0.00020472,2]
[313752624,1707671441060,-935.52,0.00020472,2]
[313752625,1707671441069,-935.58404794,0.00020472,2]
[313752626,1707671441078,-1222.69,0.00020472,2]
[313752627,1707671441088,-1222.69,0.00020472,2]
[313752628,1707671441098,-1222.69,0.00020472,2]
[313752629,1707671441107,-1222.69,0.00020472,2]
[313752630,1707671441116,-1222.69,0.00020472,2]
[313752631,1707671441126,-1222.69,0.00020472,2]
[313752632,1707671441135,-1222.69,0.00020472,2]
[313752633,1707671441144,-1222.69,0.00020472,2]
[313752634,1707671441154,-1222.69,0.00020472,2]
[313752635,1707671441163,-1222.69,0.00020472,2]
[313752636,1707671441172,-5000.0,0.00020473,2]
[313752637,1707671441181,-5000.0,0.00020473,2]
[313752638,1707671441190,-5000.0,0.00020473,2]
[313752639,1707671441199,-5000.0,0.00020473,2]
[313752640,1707671441208,-5000.0,0.00020473,2]
[313752641,1707671441216,-5000.0,0.00020473,2]
[313752642,1707671441225,-5000.0,0.00020473,2]
[313752643,1707671441353,-5000.0,0.00020473,2]
[313752644,1707671441362,-5000.0,0.00020473,2]
[313752645,1707671441371,-5000.0,0.00020473,2]
[313752646,1707671441380,-5000.0,0.00020473,2]
[313752647,1707671441390,-5000.0,0.00020473,2]
[313752648,1707671441399,-5000.0,0.00020473,2]
[313752649,1707671441408,-5000.0,0.00020473,2]
[313752650,1707671441418,-5000.0,0.00020473,2]
[313752651,1707671441426,-5000.0,0.00020473,2]
[313752652,1707671441435,-5000.0,0.00020473,2]
[313752653,1707671441444,-5000.0,0.00020473,2]
[313752654,1707671441454,-5000.0,0.00020473,2]
[313752655,1707671441463,-5000.0,0.00020473,2]
[313752656,1707671441472,-50000.0,0.00020473,2]
[313752657,1707671441480,-5000.0,0.00020473,2]
[313752658,1707671441490,-5000.0,0.00020473,2]
[313752659,1707671441500,-5000.0,0.00020473,2]
[313752660,1707671441509,-5000.0,0.00020473,2]
[313752661,1707671441518,-5000.0,0.00020473,2]
[313752662,1707671441527,-5000.0,0.00020473,2]
[313752663,1707671441536,-5000.0,0.00020473,2]
[313752664,1707671441544,-5000.0,0.00020473,2]
[313752665,1707671441553,-5000.0,0.00020473,2]
[313752666,1707671441562,-5000.0,0.00020473,2]
[313752668,1707671441572,-5000.0,0.00020473,2]
[313752669,1707671441581,-5000.0,0.00020473,2]
[313752670,1707671441590,-5000.0,0.00020473,2]
[313752671,1707671441599,-5000.0,0.00020473,2]
[313752672,1707671441608,-5000.0,0.00020473,2]
[313752673,1707671441617,-5000.0,0.00020473,2]
[313752675,1707671441627,-5000.0,0.00020473,2]
[313752676,1707671441636,-1661.59319866,0.00020473,2]
[313752677,1707671441646,-5000.0,0.00020473,2]
[313752678,1707671441655,-5000.0,0.00020473,2]
[313752679,1707671441665,-5000.0,0.00020473,2]
[313752680,1707671441674,-5000.0,0.00020473,2]
[313752681,1707671441684,-5000.0,0.00020473,2]
[313752682,1707671441693,-5000.0,0.00020473,2]
[313752683,1707671441702,-5000.0,0.00020473,2]
[313752684,1707671441711,-5000.0,0.00020473,2]
[313752685,1707671441721,-5000.0,0.00020473,2]
[313752686,1707671441730,-88613.21176618,0.00020473,2]
[313752687,1707671441739,-5000.0,0.00020473,2]
[313752688,1707671441749,-5000.0,0.00020473,2]
[313752689,1707671441758,-5000.0,0.00020473,2]
[313752690,1707671441770,-5000.0,0.00020473,2]
[313752691,1707671441779,-5000.0,0.00020473,2]
[313752692,1707671441788,-5000.0,0.00020473,2]
[313752693,1707671441797,-5000.0,0.00020473,2]
[313752694,1707671441806,-5000.0,0.00020473,2]
[313752695,1707671441816,-5000.0,0.00020473,2]
[313752696,1707671441826,-5000.0,0.00020473,2]
[313752697,1707671441835,-5000.0,0.00020473,2]
[313752698,1707671441844,-17010.1624862,0.00020473,2]
[313752699,1707671441853,-5000.0,0.00020473,2]
[313752700,1707671441864,-5000.0,0.00020473,2]
[313752701,1707671441874,-5000.0,0.00020473,2]
[313752702,1707671441882,-5000.0,0.00020473,2]
[313752703,1707671441891,-5000.0,0.00020473,2]
[313752704,1707671441901,-5000.0,0.00020473,2]
[313752705,1707671441909,-5000.0,0.00020473,2]
[313752706,1707671441919,-5000.0,0.00020473,2]
[313752707,1707671441928,-5000.0,0.00020473,2]
[313752708,1707671441937,-5000.0,0.00020473,2]
[313752709,1707671441946,-5000.0,0.00020473,2]
[313752710,1707671441956,-5000.0,0.00020473,2]
[313752711,1707671441966,-5000.0,0.00020473,2]
[313752712,1707671441975,-5000.0,0.00020473,2]
[313752713,1707671441984,-5000.0,0.00020473,2]
[313752714,1707671441993,-5000.0,0.00020473,2]
[313752715,1707671442002,-5000.0,0.00020473,2]
[313752716,1707671442011,-5000.0,0.00020473,2]
[313752717,1707671442021,-5000.0,0.00020473,2]
[313752718,1707671442030,-741.88064759,0.00020546,2]
[313752719,1707671442039,-500.0,0.00020547,2]
[313752720,1707671442048,-208.37903851,0.00020547,2]
[313752721,1707671442057,-500.0,0.00020547,2]
[313752722,1707671442066,-850.65,0.00020547,2]
[313752723,1707671442076,-560.97,0.00020547,2]
[313752724,1707671442085,-500.0,0.00020547,2]
[313752725,1707671442095,-983.13,0.00020547,2]
[313752726,1707671442104,-796.78,0.00020547,2]
[313752727,1707671442113,-543.73237745,0.00020547,2]
[313752728,1707671442122,-331.51457676,0.00020547,2]
[313752729,1707671442132,-972.04,0.00020547,2]
[313752730,1707671442142,-500.0,0.00020547,2]
[313752731,1707671442151,-512.85,0.00020547,2]
[313752732,1707671442160,-4576.94,0.00020547,2]
[313752733,1707671442171,-969.61,0.00020547,2]
[313752734,1707671442180,-500.0,0.00020547,2]
[313752735,1707671442189,-4035.21,0.00020547,2]
[313752736,1707671442198,-500.0,0.00020547,2]
[313752737,1707671442207,-970.4,0.00020547,2]
[313752738,1707671442216,-2532.92,0.00020547,2]
[313752739,1707671442226,-3358.08,0.00020547,2]
[313752740,1707671442235,-4412.31,0.00020547,2]
[313752741,1707671442244,-1041.18,0.00020547,2]
[313752742,1707671442253,-810.81,0.00020547,2]
[313752743,1707671442261,-3558.2,0.00020547,2]
[313752744,1707671442270,-8033.48,0.00020547,2]
[313752745,1707671442280,-500.0,0.00020547,2]
[313752746,1707671442289,-696.26,0.00020547,2]
[313752747,1707671442297,-500.0,0.00020547,2]
[313752748,1707671442306,-507.96,0.00020547,2]
[313752749,1707671442315,-500.0,0.00020547,2]
[313752750,1707671442325,-4020.23,0.00020547,2]
[313752751,1707671442334,-839.95,0.00020547,2]
[313752752,1707671442342,-500.0,0.00020547,2]
[313752753,1707671442351,-500.0,0.00020547,2]
[313752754,1707671442360,-741.31,0.00020547,2]
[313752755,1707671442369,-933.64,0.00020547,2]
[313752756,1707671442379,-721.09,0.00020547,2]
[313752757,1707671442387,-13756.70775958,0.00020678,2]
[313752758,1707671442585,-1222.69,0.00020472,2]
[313752759,1707671442594,-1222.69,0.00020472,2]
[313752760,1707671442603,-1222.86978825,0.00020472,2]
[313752761,1707671442613,-9802.69036535,0.00020678,2]
[313752763,1707671442624,-5394.19670576,0.00020678,2]
[313752765,1707671442637,-5123.74321239,0.00020678,2]
[313752767,1707671442648,-5066.96268662,0.00020678,2]
[313752770,1707671442659,-4803.56053548,0.00020678,2]
[313752772,1707671442672,-5298.18722864,0.00020678,2]
[313752920,1707671444496,-616.25571,0.00019178,2]
[313753078,1707671446065,-111.54429,0.00019178,2]
[313753079,1707671446074,-3432.71,0.00019178,2]
[313753080,1707671446084,-727.8,0.00019452,2]
[313753081,1707671446093,-3432.71,0.00019452,2]
[313753082,1707671446102,-727.8,0.00019726,2]
[313753083,1707671446111,-3432.71,0.00019726,2]
[313753084,1707671446120,-727.8,0.0002,2]
[313753085,1707671446130,-727.8,0.00020273,2]
[313753086,1707671446139,-727.8,0.00020547,2]
[313753087,1707671446148,-4083.3257089,0.00020668,3]
[313753089,1707671446160,-11855.92013422,0.00020668,3]
[313753325,1707671454154,154.90705577,0.00017505,3]
[313753330,1707671480162,154.92253873,0.00018599,3]
[313753331,1707671496944,154.92253873,0.00018608,3]
[313753332,1707671516157,154.92253873,0.00018572,3]
[313753333,1707671534158,154.92253873,0.00018424,3]
[313753342,1707671554165,154.92253873,0.00018397,3]
[313753343,1707671570176,154.92253873,0.00017998,3]
[313753344,1707671590167,154.92253873,0.00017505,3]
[313753345,1707671606170,154.92253873,0.00017505,3]
[313753346,1707671624188,154.92253873,0.00017505,3]
[313753347,1707671644181,154.92253873,0.00017505,3]
[313753349,1707671666298,154.92253873,0.00017258,3]
[313753350,1707671688199,154.92253873,0.00017258,3]
[313753351,1707671710207,154.92253873,0.00017258,3]
[313753353,1707671726235,154.92253873,0.00017258,3]
[313753354,1707671744226,154.92253873,0.00017258,3]
[313753359,1707671764210,154.92253873,0.00017258,3]
[313753366,1707671782216,154.92253873,0.00017258,3]
[313753369,1707671802217,154.92253873,0.00017258,3]
[313753377,1707671824220,154.92253873,0.00017258,3]
[313753378,1707671840242,154.92253873,0.00017258,3]
[313753379,1707671864230,154.92253873,0.00017258,3]
[313753380,1707671884237,154.92253873,0.00017258,3]
[313753381,1707671902231,154.90705577,0.00017258,3]
[313753382,1707671918242,154.90705577,0.00017258,3]
[313753383,1707671934246,154.90705577,0.00017258,3]
[313753384,1707671950244,154.90705577,0.00017258,3]
[313753385,1707671968249,154.90705577,0.00017258,3]
[313753386,1707671988255,154.90705577,0.00017258,3]
[313753387,1707672004267,154.90705577,0.00017258,3]
[313753388,1707672024604,154.90705577,0.00017258,3]
[313753389,1707672042259,154.90705577,0.00017258,3]
[313753390,1707672066262,154.90705577,0.00017258,3]
[313753391,1707672082285,154.90705577,0.00017258,3]
[313753392,1707672102261,154.90705577,0.00017258,3]
[313753394,1707672118259,154.90705577,0.00017258,3]
[313753396,1707672146267,154.90705577,0.00017258,3]
[313753397,1707672166269,154.90705577,0.00017258,3]
[313753398,1707672184270,154.90705577,0.00017258,3]
[313753399,1707672200276,154.90705577,0.00017258,3]
[313753401,1707672216342,154.90705577,0.00017258,3]
[313753402,1707672236270,154.90705577,0.00017258,3]
[313753403,1707672252290,154.90705577,0.00017258,3]
[313753404,1707672270279,154.90705577,0.00017258,3]
[313753405,1707672290280,154.90705577,0.00017258,3]
[313753406,1707672306273,154.90705577,0.00017258,3]
[313753407,1707672330293,154.90705577,0.00017258,3]
[313753409,1707672352285,154.90705577,0.00017258,3]
[313753410,1707672378310,154.90705577,0.00017258,3]
[313753411,1707672398305,154.90705577,0.00017258,3]
[313753412,1707672418293,154.90705577,0.00017258,3]
[313753414,1707672434303,154.90705577,0.00017504,3]
[313753415,1707672454296,154.90705577,0.00017504,3]
[313753416,1707672474297,154.90705577,0.00017504,3]
[313753417,1707672492317,154.90705577,0.00017504,3]
[313753419,1707672510327,154.90705577,0.00017504,3]
[313753422,1707672528322,154.90705577,0.00017616,3]
[313753423,1707672548330,154.90705577,0.00017607,3]
[313753424,1707672568329,154.90705577,0.00017589,3]
[313753425,1707672586331,154.90705577,0.0001758,3]
[313753426,1707672600320,154.90705577,0.00017598,3]
[313753436,1707672624332,154.90705577,0.00017553,3]
[313753629,1707672638375,-659.22559524,0.000189,2]
[313753631,1707672638384,-171.631999,0.00019,2]
[313753633,1707672638394,-1000.0,0.00019,19]
[313753635,1707672638403,-727.21,0.00019178,2]
[313753637,1707672638412,-500.0,0.00019178,2]
[313753639,1707672638421,-500.0,0.00019178,2]
[313753641,1707672638431,-500.0,0.00019178,2]
[313753643,1707672638440,-777.05,0.00019178,2]
[313753645,1707672638450,-3309.23,0.00019178,2]
[313753647,1707672638459,-608.11,0.00019178,2]
[313753649,1707672638468,-637.99,0.00019178,2]
[313753651,1707672638478,-500.0,0.00019178,2]
[313753653,1707672638486,-737.35,0.00019178,2]
[313753655,1707672638495,-169.675524,0.00019178,2]
[313753657,1707672638504,-500.0,0.00019441,2]
[313753659,1707672638513,-2668.65,0.0001945,2]
[313753661,1707672638522,-6025.11,0.0001945,2]
[313753663,1707672638531,-3015.17,0.0001945,2]
[313753665,1707672638540,-534.89792069,0.0001945,2]
[313753667,1707672638549,-500.0,0.0001945,2]
[313753669,1707672638558,-500.0,0.0001945,2]
[313753671,1707672638567,-540.81,0.0001945,2]
[313753673,1707672638576,-500.0,0.0001945,2]
[313753675,1707672638585,-597.59,0.00019451,2]
[313753677,1707672638594,-500.0,0.00019451,2]
[313753679,1707672638602,-500.0,0.00019451,2]
[313753681,1707672638611,-1899.69,0.00019451,2]
[313753683,1707672638620,-2518.56,0.00019451,2]
[313753685,1707672638629,-500.0,0.00019451,2]
[313753687,1707672638638,-780.89,0.00019451,2]
[313753688,1707672638647,-629.96,0.00019451,2]
[313753689,1707672638656,-522.2,0.00019451,2]
[313753690,1707672638665,-276.97913814,0.00019451,2]
[313753691,1707672638674,-500.0,0.00019451,2]
[313753692,1707672638683,-231.04827853,0.00019451,2]
[313753693,1707672638692,-500.0,0.00019451,2]
[313753694,1707672638702,-700.23,0.00019451,2]
[313753695,1707672638711,-555.98,0.00019451,2]
[313753696,1707672638720,-545.85,0.00019451,2]
[313753698,1707672638729,-3003.62,0.00019451,2]
[313753699,1707672638738,-500.0,0.00019451,2]
[313753700,1707672638747,-500.0,0.00019451,2]
[313753701,1707672638757,-500.0,0.00019451,2]
[313753703,1707672638766,-3026.41,0.00019451,2]
[313753705,1707672638776,-727.21,0.00019452,2]
[313753706,1707672638785,-500.0,0.00019452,2]
[313753707,1707672638794,-777.05,0.00019452,2]
[313753708,1707672638803,-3309.23,0.00019452,2]
[313753709,1707672638812,-608.11,0.00019452,2]
[313753710,1707672638821,-637.99,0.00019452,2]
[313753711,1707672638830,-500.0,0.00019452,2]
[313753712,1707672638839,-737.35,0.00019452,2]
[313753713,1707672638849,-1707.45509152,0.00019485,3]
[313753714,1707672638861,-2331.36248668,0.00019485,3]
[313753734,1707672644380,-1820.54,0.00019451,2]
[313753735,1707672644389,-3039.30299656,0.00019485,3]
[313753740,1707672648924,154.90705577,0.00017997,3]
[313753741,1707672664342,154.90705577,0.00017988,3]
[313753742,1707672682347,154.90705577,0.00017751,3]
[313753743,1707672700347,154.90705577,0.00017751,3]
[313753744,1707672720358,154.90705577,0.00017751,3]
[313753745,1707672734345,154.90705577,0.00017751,3]
[313753746,1707672752343,154.90705577,0.00017751,3]
[313753747,1707672772427,154.90705577,0.0001797,3]
[313753748,1707672794422,154.90705577,0.00017987,3]
[313753754,1707672810434,154.90705577,0.00017969,3]
[313753755,1707672832417,154.90705577,0.00017996,3]
[313753756,1707672854436,154.90705577,0.00017978,3]
[313753757,1707672874417,154.90705577,0.0001796,3]
[313753758,1707672890426,154.90705577,0.00017743,3]
[313753759,1707672910432,154.90705577,0.00017503,3]
[313753760,1707672928428,154.90705577,0.00017503,3]
[313753761,1707672944430,154.90705577,0.00017503,3]
[313753762,1707672960429,154.90705577,0.00017503,3]
[313753763,1707672980434,154.90705577,0.00017503,3]
[313753764,1707672998444,154.90705577,0.00017503,3]
[313753765,1707673016468,154.90705577,0.00017503,3]
[313753766,1707673036450,154.90705577,0.00017723,3]
[313753767,1707673052460,154.90705577,0.00017503,3]
[313753768,1707673072455,154.90705577,0.00017503,3]
[313753769,1707673088448,154.90705577,0.00017503,3]
[313753771,1707673108457,154.90705577,0.00017503,3]
[313753772,1707673126541,154.90705577,0.00017503,3]
[313753773,1707673152469,154.8915759,0.00017503,3]
[313753774,1707673174480,154.87609912,0.00017503,3]
[313753775,1707673190471,154.87609912,0.00017503,3]
[313753776,1707673210479,154.87609912,0.00017503,3]
[313753777,1707673230475,154.87609912,0.00017503,3]
[313753778,1707673246471,154.87609912,0.00017503,3]
[313753779,1707673264488,154.87609912,0.00017503,3]
[313753780,1707673288469,154.87609912,0.00017503,3]
[313753781,1707673304486,154.87609912,0.00017503,3]
[313753782,1707673326490,154.87609912,0.00017503,3]
[313753783,1707673342480,154.87609912,0.00017503,3]
[313753784,1707673364476,154.87609912,0.00017503,3]
[313753785,1707673378667,154.87609912,0.00017503,3]
[313753786,1707673396527,154.87609912,0.00017503,3]
[313753787,1707673416503,154.87609912,0.00017503,3]
[313753788,1707673434495,154.87609912,0.00017503,3]
[313753789,1707673458582,154.87609912,0.00017503,3]
[313753790,1707673474496,154.87609912,0.00017503,3]
[313753791,1707673498503,154.87609912,0.00017503,3]
[313753792,1707673520514,154.87609912,0.00017503,3]
[313753793,1707673540518,154.87609912,0.00017503,3]
[313753794,1707673560522,154.87609912,0.00017503,3]
[313753795,1707673576523,154.87609912,0.00017503,3]
[313753796,1707673596532,154.87609912,0.00017503,3]
[313753798,1707673622535,154.87609912,0.00017503,3]
[313753799,1707673636527,154.87609912,0.00017503,3]
[313753800,1707673652531,154.87609912,0.00017503,3]
[313753801,1707673672545,154.87609912,0.00017503,3]
[313753802,1707673694548,154.87609912,0.00017503,3]
[313753803,1707673710551,154.87609912,0.00017503,3]
[313753804,1707673728857,154.87609912,0.00017503,3]
[313753805,1707673748548,154.87609912,0.00017503,3]
[313753806,1707673762546,154.87609912,0.00017503,3]
[313753807,1707673780642,154.87609912,0.00017503,3]
[313753810,1707673796557,154.87609912,0.00017503,3]
[313753816,1707673812377,913.72917389,0.00018,2]
[313753817,1707673822563,154.87609912,0.00017748,3]
[313753857,1707673832430,-212.72419898,0.00018897,2]
[313753859,1707673832440,-160.16428203,0.00018898,2]
[313753861,1707673832452,-573.16071234,0.00018898,2]
[313753864,1707673832461,-439.48373016,0.000189,2]
[313753866,1707673832472,-500.0,0.0001945,2]
[313753867,1707673832481,-444.73780864,0.0001945,2]
[313754081,1707673838563,-55.26219136,0.0001945,2]
[313754082,1707673838574,-712.3,0.0001945,2]
[313754083,1707673838583,-500.0,0.0001945,2]
[313754084,1707673838592,-454.47444014,0.0001945,2]
[313754085,1707673838601,-557.44,0.0001945,2]
[313754086,1707673838612,-500.0,0.0001945,2]
[313754087,1707673838621,-500.0,0.0001945,2]
[313754088,1707673838630,-501.85365298,0.0001945,2]
[313754089,1707673838639,-584.82,0.0001945,2]
[313754090,1707673838648,-500.0,0.0001945,2]
[313754091,1707673838657,-675.91,0.0001945,2]
[313754092,1707673838667,-369.01425725,0.00019451,2]
[313754093,1707673838679,-130.98574275,0.00019451,2]
[313754094,1707673838688,-666.61,0.00019451,2]
[313754095,1707673838697,-4.84639428,0.000195,2]
[313754098,1707673840558,154.87609912,0.00017748,3]
[313754108,1707673841766,-1110.73629147,0.000195,2]
[313754109,1707673841776,-2413.62,0.00019694,2]
[313754110,1707673841785,-748.35,0.00019694,2]
[313754111,1707673841803,-500.0,0.00019694,2]
[313754112,1707673841814,-566.45,0.00019694,2]
[313754113,1707673841823,-2878.47,0.00019694,2]
[313754114,1707673841833,-351.28218481,0.00019694,2]
[313754115,1707673841842,-2900.31,0.00019694,2]
[313754116,1707673841851,-3033.46,0.00019694,2]
[313754117,1707673841861,-593.52,0.00019722,2]
[313754118,1707673841870,-2557.46,0.00019722,2]
[313754119,1707673841880,-2889.54,0.00019722,2]
[313754120,1707673841889,-5774.06,0.00019722,2]
[313754121,1707673841898,-500.0,0.00019722,2]
[313754122,1707673841907,-500.0,0.00019722,2]
[313754123,1707673841916,-518.28,0.00019722,2]
[313754124,1707673841925,-500.0,0.00019722,2]
[313754125,1707673841934,-500.0,0.00019722,2]
[313754126,1707673841943,-500.0,0.00019723,2]
[313754127,1707673841952,-645.21,0.00019723,2]
[313754128,1707673841961,-532.03,0.00019723,2]
[313754129,1707673841970,-717.18,0.00019723,2]
[313754130,1707673841979,-500.0,0.00019723,2]
[313754131,1707673841988,-523.11,0.00019723,2]
[313754132,1707673841997,-500.0,0.00019723,2]
[313754133,1707673842011,-1744.69,0.00019723,2]
[313754134,1707673842020,-500.0,0.00019724,2]
[313754135,1707673842029,-712.3,0.00019724,2]
[313754136,1707673842039,-500.0,0.00019724,2]
[313754137,1707673842048,-557.44,0.00019724,2]
[313754138,1707673842057,-584.82,0.00019724,2]
[313754139,1707673842066,-500.0,0.00019724,2]
[313754140,1707673842075,-675.91,0.00019724,2]
[313754141,1707673842084,-500.0,0.00019725,2]
[313754142,1707673842093,-666.61,0.00019725,2]
[313754143,1707673842102,-2413.62,0.00019968,2]
[313754144,1707673842111,-748.35,0.00019968,2]
[313754145,1707673842120,-500.0,0.00019968,2]
[313754146,1707673842130,-566.45,0.00019968,2]
[313754147,1707673842139,-2878.47,0.00019968,2]
[313754148,1707673842148,-2900.31,0.00019968,2]
[313754149,1707673842157,-284.21530393,0.00019968,2]
[313754155,1707673843524,-302.00997705,0.00019968,2]
[313754156,1707673843538,-2447.23471902,0.00019968,2]
[313754157,1707673843547,-1715.2099594,0.0001999,3]
[313754178,1707673846505,-510.98,0.00019694,2]
[313754179,1707673846515,-2212.49,0.00019723,2]
[313754180,1707673846525,-510.98,0.00019968,2]
[313754181,1707673846535,-6798.414687,0.0001999,3]
[313754182,1707673846547,-462.09347315,0.0001999,3]
[313754183,1707673858573,154.87609912,0.00017998,3]
[313754184,1707673878570,154.87609912,0.00017989,3]
[313754185,1707673896683,154.87609912,0.00017998,3]
[313754186,1707673904218,155.39246349,0.00017998,2]
[313754187,1707673914577,154.87609912,0.00017989,3]
[313754188,1707673935102,154.87609912,0.00017989,3]
[313754191,1707673957081,154.87609912,0.00017995,3]
[313754193,1707673975077,154.87609912,0.00017987,3]
[313754194,1707673993076,154.87609912,0.00017989,3]
[313754195,1707674009087,154.87609912,0.00017986,3]
[313754196,1707674027087,154.87609912,0.00017986,3]
[313754198,1707674045088,154.87609912,0.00017989,3]
[313754200,1707674065278,154.87609912,0.00017986,3]
[313754201,1707674079092,154.87609912,0.00017748,3]
[313754203,1707674101103,154.87609912,0.00017748,3]
[313754204,1707674121096,154.87609912,0.00017748,3]
[313754205,1707674141126,154.87609912,0.00017748,3]
[313754207,1707674161108,154.87609912,0.00017748,3]
[313754208,1707674183269,154.87609912,0.00017748,3]
[313754209,1707674201201,154.87609912,0.00017748,3]
[313754210,1707674221157,154.87609912,0.00017748,3]
[313754212,1707674241156,154.87609912,0.00017748,3]
[313754213,1707674263137,154.87609912,0.00017748,3]
[313754215,1707674281148,154.87609912,0.00017748,3]
[313754216,1707674301140,154.87609912,0.00017748,3]
[313754217,1707674319154,154.87609912,0.00017748,3]
[313754218,1707674339140,154.87609912,0.00017748,3]
[313754219,1707674357142,154.87609912,0.00017748,3]
[313754220,1707674377153,154.87609912,0.00017748,3]
[313754221,1707674395159,154.87609912,0.00017748,3]
[313754224,1707674413176,154.87609912,0.00017748,3]
[313754225,1707674431165,154.87609912,0.00017748,3]
[313754226,1707674449160,154.87609912,0.00017748,3]
[313754227,1707674473175,154.87609912,0.00017748,3]
[313754228,1707674493174,154.87609912,0.00017748,3]
[313754229,1707674513177,154.87609912,0.00017748,3]
[313754230,1707674531176,154.87609912,0.00017748,3]
[313754231,1707674547200,154.87609912,0.00017748,3]
[313754232,1707674570428,154.87609912,0.00017748,3]
[313754233,1707674583192,154.87609912,0.00017748,3]
[313754235,1707674605190,154.87609912,0.00017748,3]
[313754238,1707674627205,154.87609912,0.00017748,3]
[313754239,1707674643196,154.87609912,0.00017748,3]
[313754240,1707674657218,154.87609912,0.00017748,3]
[313754241,1707674681204,154.87609912,0.00017748,3]
[313754242,1707674699230,154.87609912,0.00017748,3]
[313754244,1707674715212,154.87609912,0.00017748,3]
[313754245,1707674733220,154.87609912,0.00017748,3]
[313754246,1707674753237,154.87609912,0.00017748,3]
[313754247,1707674775226,154.87609912,0.00017748,3]
[313754248,1707674795229,154.87609912,0.00017748,3]
[313754249,1707674813437,154.87609912,0.00017748,3]